bitfinex-derivatives/quotes_ETHF0:USTF0_20260119
["timestamp","ask_amount","ask_price","bid_price","bid_amount"]
[1768832790579,0.94694026,3210.9,3209.8,0.15585]
[1768832790774,0.94694026,3210.8,3209.8,0.15585]
[1768832790966,0.00364399,3211.0,3209.8,0.15585]
[1768832791171,0.94692024,3210.9,3209.8,0.15585]
[1768832791464,0.94692024,3210.8,3209.8,0.15585]
[1768832791670,0.00364399,3211.0,3209.8,0.15585]
[1768832791864,0.94684471,3210.9,3209.8,0.15585]
[1768832792077,0.94684471,3210.8,3209.8,0.15585]
[1768832792273,0.00364399,3211.0,3209.8,0.15585]
[1768832792474,0.94678398,3210.9,3209.8,0.15585]
[1768832792673,0.94678398,3210.8,3209.8,0.15585]
[1768832792878,0.00364399,3211.0,3209.8,0.15585]
[1768832793080,0.94678414,3210.9,3209.8,0.15585]
[1768832793280,0.94678414,3210.8,3209.8,0.15585]
[1768832793480,0.00364399,3211.0,3209.8,0.15585]
[1768832793686,0.94674943,3210.9,3209.8,0.15585]
[1768832793980,0.94674943,3210.8,3209.8,0.15585]
[1768832794181,0.00364399,3211.0,3209.8,0.15585]
[1768832794378,0.94674517,3210.9,3209.8,0.15585]
[1768832794576,0.94674517,3210.8,3209.8,0.15585]
[1768832794779,0.00364399,3211.0,3209.8,0.15585]
[1768832794974,0.94672823,3210.9,3209.8,0.15585]
[1768832795280,0.94672823,3210.8,3209.8,0.15585]
[1768832795485,0.00364399,3211.0,3209.8,0.15585]
[1768832795678,0.94673242,3210.9,3209.8,0.15585]
[1768832795878,0.94673242,3210.8,3209.8,0.15585]
[1768832796085,1.29551268,3210.5,3209.2,0.15588]
[1768832796579,0.94665473,3210.4,3209.2,0.15588]
[1768832796781,1.29551268,3210.1,3209.2,0.15588]
[1768832797683,1.29551268,3210.1,3208.6,0.29193997]
[1768832797879,0.1346246,3210.0,3208.6,0.15591]
[1768832798187,1.29551268,3209.7,3208.6,0.15591]
[1768832798793,0.1346246,3210.0,3208.6,0.15591]
[1768832799382,0.00466832,3209.6,3208.6,0.15591]
[1768832805390,0.00466832,3209.6,3208.6,0.29499551]
[1768832808392,0.00466832,3209.6,3208.6,0.15591]
[1768832808989,0.00466832,3209.6,3208.6,0.29499551]
[1768832813791,0.00466832,3209.6,3208.8,0.29168116]
[1768832814691,0.00466832,3209.6,3208.9,0.29168116]
[1768832816190,0.00466832,3209.6,3209.0,0.15589]
[1768832817194,2.40857002,3210.4,3209.0,0.15589]
[1768832817400,0.94562951,3210.3,3209.0,0.16055832]
[1768832817596,0.94562951,3210.2,3209.2,0.29166116]
[1768832817901,1.11305734,3210.8,3209.5,0.13578116]
[1768832818086,0.94592567,3210.7,3209.5,0.13578116]
[1768832818293,0.94592567,3210.6,3209.5,0.13578116]
[1768832818493,0.94592567,3210.5,3209.5,0.13578116]
[1768832818693,1.29551268,3210.7,3209.5,0.13578116]
[1768832818893,0.94609742,3210.6,3209.5,0.13578116]
[1768832819101,0.94609742,3210.5,3209.5,0.13578116]
[1768832819302,1.29551268,3210.7,3209.5,0.13578116]
[1768832819505,0.94625243,3210.6,3209.5,0.13578116]
[1768832819697,0.94625243,3210.5,3209.5,0.13578116]
[1768832819897,1.29551268,3210.7,3209.5,0.13578116]
[1768832820097,0.94625711,3210.6,3209.5,0.13578116]
[1768832820300,0.94625711,3210.5,3209.5,0.13578116]
[1768832820503,1.11305734,3210.9,3209.5,0.13578116]
[1768832820698,0.94642294,3210.8,3209.5,0.29165116]
[1768832821000,0.94642294,3210.7,3209.5,0.29165116]
[1768832821201,0.94642294,3210.6,3209.5,0.29165116]
[1768832821400,0.94642294,3210.5,3209.5,0.29165116]
[1768832821602,1.11305734,3210.9,3209.5,0.29165116]
[1768832821804,0.94660216,3210.8,3209.5,0.29165116]
[1768832822005,0.94660216,3210.7,3209.5,0.29165116]
[1768832822207,0.94660216,3210.6,3209.5,0.29165116]
[1768832822409,0.94660216,3210.5,3209.5,0.29165116]
[1768832822698,1.11305734,3210.9,3209.5,0.29165116]
[1768832822907,0.94672024,3210.8,3209.6,0.15586]
[1768832823106,0.94672024,3210.7,3209.6,0.15586]
[1768832823404,0.94672024,3210.6,3209.6,0.15586]
[1768832823605,0.94672024,3210.5,3209.6,0.15586]
[1768832823796,1.11305734,3210.9,3209.6,0.15586]
[1768832824002,0.94689141,3210.8,3209.6,0.15586]
[1768832824200,0.94689141,3210.7,3209.6,0.15586]
[1768832824505,0.94689141,3210.6,3209.6,0.29164116]
[1768832824712,0.14598079,3211.0,3209.6,0.29164116]
[1768832824901,0.94716458,3210.9,3209.6,0.29164116]
[1768832825203,2.24267726,3210.8,3209.6,0.29164116]
[1768832825398,0.94716458,3210.7,3209.6,0.15586]
[1768832825596,1.29551268,3210.8,3209.6,0.15586]
[1768832825597,0.94716458,3210.6,3209.6,0.15586]
[1768832825797,1.29551268,3210.8,3209.6,0.15586]
[1768832825993,0.947256,3210.7,3209.6,0.15586]
[1768832826202,1.29551268,3210.8,3209.6,0.15586]
[1768832826402,0.94712723,3210.7,3209.6,0.15586]
[1768832826605,1.29551268,3210.8,3209.6,0.15586]
[1768832826909,0.94712671,3210.7,3209.6,0.15586]
[1768832827100,1.29551268,3210.8,3209.6,0.15586]
[1768832827302,0.94712732,3210.7,3209.6,0.15586]
[1768832827598,1.29551268,3210.8,3209.6,0.15586]
[1768832827800,0.94695933,3210.7,3209.6,0.15586]
[1768832828100,1.29551268,3210.8,3209.6,0.15586]
[1768832828299,0.94695219,3210.7,3209.6,0.15586]
[1768832828498,1.29551268,3210.8,3209.6,0.15586]
[1768832828698,0.9467802,3210.7,3209.6,0.15586]
[1768832828902,0.14598079,3211.0,3209.6,0.15586]
[1768832829099,0.94678305,3210.9,3209.6,0.15586]
[1768832829305,0.94678305,3210.8,3209.6,0.15586]
[1768832829501,0.14598079,3211.0,3209.6,0.15586]
[1768832829502,0.94678305,3210.7,3209.6,0.29164116]
[1768832829701,0.00364399,3211.0,3209.6,0.29164116]
[1768832829909,0.94516674,3210.9,3209.6,0.29164116]
[1768832830101,0.94516674,3210.8,3209.6,0.29164116]
[1768832830298,0.00364399,3211.0,3209.6,0.29164116]
[1768832830500,0.9450461,3210.9,3209.6,0.29164116]
[1768832830800,0.9450461,3210.8,3209.6,0.29164116]
[1768832831001,0.00364399,3211.0,3209.6,0.29164116]
[1768832831002,1.29502463,3210.5,3209.6,0.29164116]
[1768832833210,1.29502463,3210.5,3209.7,0.15586]
[1768832833410,1.29502463,3210.7,3209.7,0.15586]
[1768832834012,1.29502463,3210.7,3209.6,0.13578116]
[1768832834208,1.29502463,3210.9,3209.9,0.15585]
[1768832835713,1.29502463,3210.7,3209.9,0.15585]
[1768832836112,1.29502463,3210.5,3209.9,0.15585]
[1768832837410,1.29502463,3210.3,3209.2,0.13578116]
[1768832838117,1.29502463,3210.3,3209.4,0.15587]
[1768832839213,1.29502463,3210.3,3209.5,0.15587]
[1768832841111,1.29502463,3210.5,3209.2,1.43080579]
[1768832841310,1.29866862,3211.0,3209.8,0.15585]
[1768832841509,0.94529783,3210.9,3209.8,0.15585]
[1768832841712,0.94529783,3210.8,3209.8,0.15585]
[1768832841912,1.29502463,3210.8,3209.8,0.15585]
[1768832842913,1.29502463,3210.6,3209.8,0.15585]
[1768832843215,1.29866862,3211.0,3209.9,0.15585]
[1768832843407,1.29502463,3210.6,3209.9,0.15585]
[1768832843610,1.29502463,3210.4,3209.9,0.15585]
[1768832843810,1.29502463,3210.5,3209.9,0.15585]
[1768832844812,1.29502463,3210.7,3209.9,0.15585]
[1768832847420,0.94732614,3210.6,3209.9,0.15585]
[1768832847620,1.29502463,3210.7,3209.9,0.15585]
[1768832847820,0.94732399,3210.6,3209.9,0.15585]
[1768832848022,1.29502463,3210.7,3209.9,0.15585]
[1768832848321,1.29502463,3210.5,3209.9,0.15585]
[1768832852822,1.29502463,3210.7,3209.9,0.15585]
[1768832853024,0.94783861,3210.6,3209.9,0.15585]
[1768832853227,1.29502463,3210.7,3209.9,0.15585]
[1768832853523,0.94796044,3210.6,3209.9,0.15585]
[1768832853726,1.29502463,3210.7,3209.9,0.15585]
[1768832853926,0.94795816,3210.6,3209.9,0.15585]
[1768832854127,1.29502463,3210.5,3209.9,0.15585]
[1768832854918,1.29502463,3210.1,3209.3,0.15588]
[1768832855713,1.29502463,3210.1,3209.4,0.15587]
[1768832857126,0.13049398,3210.4,3209.4,0.15587]
[1768832857322,2.24278025,3210.3,3209.4,0.15587]
[1768832857626,1.29502463,3210.3,3209.4,0.15587]
[1768832863027,1.29502463,3210.3,3209.5,0.15587]
[1768832863222,2.40808197,3210.7,3209.5,0.15587]
[1768832863519,0.94457055,3210.6,3209.5,0.15587]
[1768832863721,2.23959518,3210.5,3209.5,0.15587]
[1768832863916,0.94457055,3210.4,3209.6,0.15586]
[1768832864130,0.94457055,3210.3,3209.6,0.15586]
[1768832864325,1.29502463,3210.7,3209.7,0.15586]
[1768832864525,0.94455189,3210.6,3209.7,0.15586]
[1768832864726,0.94455189,3210.5,3209.7,0.15586]
[1768832864926,0.94455189,3210.4,3209.8,0.15585]
[1768832865233,1.29502463,3210.9,3209.9,0.15585]
[1768832865420,0.94466654,3210.8,3209.9,0.15585]
[1768832865625,0.94466654,3210.7,3209.9,0.15585]
[1768832865823,1.29502463,3210.9,3209.9,0.15585]
[1768832866027,0.94471054,3210.8,3209.9,0.15585]
[1768832866229,0.94471054,3210.7,3209.9,0.15585]
[1768832866436,1.29502463,3210.9,3209.9,0.15585]
[1768832866628,0.94469514,3210.8,3209.9,0.15585]
[1768832866936,0.94469514,3210.7,3209.9,0.15585]
[1768832867130,1.29502463,3210.9,3209.9,0.15585]
[1768832867432,0.94469514,3210.8,3209.9,0.15585]
[1768832867633,2.23971977,3210.7,3209.9,0.15585]
[1768832867824,1.29502463,3210.7,3209.9,0.15585]
[1768832870638,0.00364399,3211.0,3209.9,0.15585]
[1768832870838,1.29502463,3210.8,3209.9,0.15585]
[1768832871138,0.94456722,3210.7,3209.9,0.15585]
[1768832871333,1.29502463,3210.8,3209.9,0.15585]
[1768832871552,0.94454073,3210.7,3209.9,0.15585]
[1768832871829,1.29502463,3210.8,3209.9,0.15585]
[1768832872027,0.9445401,3210.7,3209.9,0.15585]
[1768832872228,1.29502463,3210.6,3209.9,0.15585]
[1768832872431,1.29502463,3210.4,3209.5,0.15587]
[1768832874230,1.29502463,3210.4,3209.6,0.15586]
[1768832874732,0.01902673,3211.0,3209.9,0.15585]
[1768832874942,0.94448408,3210.9,3209.9,0.15585]
[1768832875141,2.23950871,3210.8,3209.9,0.15585]
[1768832875341,0.94448408,3210.7,3209.9,0.15585]
[1768832875541,1.29502463,3210.8,3209.9,0.15585]
[1768832875742,0.94446348,3210.7,3209.9,0.15585]
[1768832875941,1.29502463,3210.8,3209.9,0.15585]
[1768832876145,1.29502463,3210.6,3209.9,0.15585]
[1768832876651,1.29502463,3210.8,3209.9,0.15585]
[1768832876841,0.94444818,3210.7,3209.9,0.15585]
[1768832877035,1.29502463,3210.8,3209.9,0.15585]
[1768832877239,0.94444652,3210.7,3209.9,0.15585]
[1768832877444,1.29502463,3210.8,3209.9,0.15585]
[1768832877644,0.94439693,3210.7,3209.9,0.15585]
[1768832877844,1.29502463,3210.8,3209.9,0.15585]
[1768832878045,0.94439567,3210.7,3209.9,0.15585]
[1768832878246,1.29502463,3210.8,3209.9,0.15585]
[1768832878446,0.94439275,3210.7,3209.9,0.15585]
[1768832878646,1.29502463,3210.8,3209.9,0.15585]
[1768832878846,0.94439275,3210.7,3209.9,0.15585]
[1768832879048,1.29502463,3210.8,3209.9,0.15585]
[1768832879246,0.94439277,3210.7,3209.9,0.15585]
[1768832879449,0.01902673,3211.0,3209.9,0.15585]
[1768832879748,1.29502463,3210.6,3209.9,0.15585]
[1768832880459,0.01458149,3210.9,3209.9,0.15585]
[1768832880648,1.29502463,3210.6,3209.9,0.15585]
[1768832881756,1.29502463,3210.8,3209.9,0.15585]
[1768832881948,0.01458149,3210.9,3209.9,0.15585]
[1768832882154,0.94441585,3210.8,3209.9,0.15585]
[1768832882458,0.01458149,3210.9,3209.9,0.15585]
[1768832882657,0.9443942,3210.8,3209.9,0.15585]
[1768832882857,0.01458149,3210.9,3209.9,0.15585]
[1768832883060,0.94439268,3210.8,3209.9,0.15585]
[1768832883253,1.29866862,3211.0,3209.9,0.15585]
[1768832883561,0.94436831,3210.9,3209.9,0.15585]
[1768832883750,0.94436831,3210.8,3209.9,0.15585]
[1768832883950,1.29866862,3211.0,3209.9,0.15585]
[1768832884252,0.94441336,3210.9,3209.9,0.15585]
[1768832884450,0.94441336,3210.8,3209.9,0.15585]
[1768832884747,1.29866862,3211.0,3209.9,0.15585]
[1768832884949,0.944388,3210.9,3209.9,0.15585]
[1768832885146,0.944388,3210.8,3209.9,0.15585]
[1768832885350,0.00364399,3211.0,3210.0,0.15584]
[1768832885550,0.9443647,3210.9,3210.0,0.15584]
[1768832885760,0.9443647,3210.8,3210.0,0.15584]
[1768832885962,0.00364399,3211.0,3210.0,0.15584]
[1768832886261,0.94437671,3210.9,3210.0,0.15584]
[1768832886557,0.00364399,3211.0,3210.0,0.15584]
[1768832886761,0.94441073,3210.9,3210.0,0.15584]
[1768832886956,0.00364399,3211.0,3210.0,0.15584]
[1768832887151,0.94441066,3210.9,3210.0,0.15584]
[1768832887352,0.00364399,3211.0,3210.0,0.15584]
[1768832887558,0.94442183,3210.9,3210.0,0.15584]
[1768832887760,0.00364399,3211.0,3210.0,0.15584]
[1768832888064,0.9444213,3210.9,3210.0,0.15584]
[1768832888265,0.00364399,3211.0,3210.0,0.15584]
[1768832888467,0.94444893,3210.9,3210.0,0.15584]
[1768832888763,0.00364399,3211.0,3210.0,0.15584]
[1768832888961,0.94444796,3210.9,3210.0,0.15584]
[1768832889170,0.00364399,3211.0,3210.2,0.15583]
[1768832889367,0.94448939,3210.9,3210.2,0.15583]
[1768832889562,0.00364399,3211.0,3210.2,0.15583]
[1768832889764,0.94424008,3210.9,3210.2,0.15583]
[1768832890070,0.00364399,3211.0,3210.3,0.15583]
[1768832891153,0.00364399,3211.0,3209.9,0.13128453]
[1768832891358,0.00364399,3211.0,3210.5,0.28710453]
[1768832891561,1.11305734,3211.7,3210.5,0.28710453]
[1768832892459,1.11666906,3211.7,3210.8,0.00466832]
[1768832892668,1.29440424,3211.1,3209.7,2.55528453]
[1768832892853,0.01232064,3210.9,3210.0,0.14351936]
[1768832893057,1.29440424,3210.7,3209.4,0.15587]
[1768832893761,1.29440424,3210.7,3209.4,0.15913721]
[1768832894454,1.29440424,3211.0,3209.5,0.15587]
[1768832894657,0.94406255,3210.9,3209.5,0.15587]
[1768832894858,0.9581922,3210.8,3209.5,0.15587]
[1768832895065,0.01412965,3210.8,3209.5,0.15587]
[1768832896071,0.01412965,3210.8,3209.4,0.00326721]
[1768832897776,0.01412965,3210.8,3209.7,0.15586]
[1768832898162,0.0137555,3210.6,3209.7,0.15586]
[1768832898866,0.9439895,3210.5,3209.7,0.15586]
[1768832899067,0.0137555,3210.6,3209.7,0.15586]
[1768832900172,1.12678867,3211.0,3209.7,0.15586]
[1768832900474,0.95760742,3210.9,3209.7,0.15586]
[1768832900769,0.94387609,3210.8,3209.7,0.15586]
[1768832900965,0.94387609,3210.7,3209.7,0.15586]
[1768832901165,0.94387609,3210.6,3209.7,0.15586]
[1768832901369,0.01373133,3210.9,3209.7,0.15586]
[1768832901570,0.94382415,3210.8,3209.7,0.15586]
[1768832901766,0.94382415,3210.7,3209.7,0.15586]
[1768832901967,0.94382415,3210.6,3209.7,0.15586]
[1768832902271,0.01373133,3210.9,3209.8,0.15585]
[1768832902462,0.94386507,3210.8,3209.8,0.15585]
[1768832902669,0.01373133,3210.9,3209.8,0.15585]
[1768832902966,0.94390091,3210.8,3209.8,0.15585]
[1768832903167,0.01373133,3210.9,3209.8,0.15585]
[1768832903366,0.94390825,3210.8,3209.8,0.15585]
[1768832903571,0.01373133,3210.9,3209.8,0.15585]
[1768832903872,0.94390749,3210.8,3209.8,0.15585]
[1768832904172,0.01373133,3210.9,3209.8,0.15585]
[1768832904373,0.9439153,3210.8,3209.8,0.15585]
[1768832904671,0.01373133,3210.9,3209.8,0.15585]
[1768832904872,0.94391601,3210.8,3209.8,0.15585]
[1768832905071,0.01373133,3210.9,3209.8,0.15585]
[1768832905272,0.94391662,3210.8,3209.8,0.15585]
[1768832905469,0.01373133,3210.9,3209.8,0.15585]
[1768832905668,0.94391917,3210.8,3209.8,0.15585]
[1768832905967,0.01373133,3210.9,3209.8,0.15585]
[1768832906267,0.94391833,3210.8,3209.8,0.15585]
[1768832906458,0.01373133,3210.9,3209.8,0.15585]
[1768832906659,0.94392182,3210.8,3210.0,0.15584]
[1768832906973,1.12455929,3211.3,3210.0,0.15584]
[1768832907270,0.94394725,3211.2,3210.0,0.15584]
[1768832907569,1.12455929,3211.3,3210.0,0.15584]
[1768832907570,0.94394725,3211.1,3210.0,0.15584]
[1768832907767,0.94394725,3211.0,3210.0,0.15584]
[1768832907973,1.30590619,3210.8,3210.0,0.15584]
[1768832910473,0.01150195,3210.8,3210.0,0.15584]
[1768832911158,1.12494042,3211.2,3210.0,0.15584]
[1768832911363,0.94393415,3211.1,3210.1,0.15584]
[1768832911664,0.94393415,3211.0,3210.1,0.15584]
[1768832911866,0.94393415,3210.9,3210.1,0.15584]
[1768832912164,0.01188308,3211.2,3210.1,0.15584]
[1768832912459,0.9439741,3211.1,3210.1,0.15584]
[1768832912662,0.9439741,3211.0,3210.1,0.15584]
[1768832912863,0.9439741,3210.9,3210.1,0.15584]
[1768832913069,0.01079424,3210.7,3209.4,0.00326721]
[1768832913277,0.01079424,3210.7,3209.6,0.15586]
[1768832914976,0.01079424,3210.7,3209.7,0.15586]
[1768832915873,1.11305734,3211.2,3209.5,0.13757574]
[1768832916174,0.94426482,3211.1,3209.5,0.13757574]
[1768832916376,0.94426482,3211.0,3209.5,0.13757574]
[1768832916574,0.94426482,3210.9,3209.5,0.13757574]
[1768832917079,0.01014809,3210.8,3209.9,0.15585]
[1768832917373,0.94421414,3210.7,3209.9,0.15585]
[1768832917573,0.01014809,3210.8,3209.9,0.15585]
[1768832917774,0.94420662,3210.7,3209.9,0.15585]
[1768832917974,0.01014809,3210.8,3209.9,0.15585]
[1768832918175,0.94422291,3210.7,3209.9,0.15585]
[1768832918367,0.01014809,3210.8,3209.9,0.15585]
[1768832918568,0.01014809,3210.6,3209.6,0.15586]
[1768832918874,2.40746158,3211.0,3209.6,0.15586]
[1768832919067,0.94416885,3210.9,3209.6,0.15586]
[1768832919268,0.94416885,3210.8,3209.6,0.15586]
[1768832919469,0.94416885,3210.7,3209.6,0.15586]
[1768832919668,0.94416885,3210.6,3209.6,0.15586]
[1768832919864,1.11305734,3211.0,3209.7,0.15586]
[1768832922478,2.05576206,3211.0,3209.7,0.15586]
[1768832924581,2.05576206,3211.0,3209.8,0.15585]
[1768832925184,0.94270472,3210.9,3209.9,0.15585]
[1768832925375,0.94270472,3210.8,3209.9,0.15585]
[1768832925568,0.94270472,3210.7,3209.9,0.15585]
[1768832925878,0.94270472,3210.6,3209.9,0.15585]
[1768832926079,1.11305734,3211.1,3209.9,0.15585]
[1768832926784,2.05624587,3211.1,3209.9,0.15585]
[1768832928487,1.11305734,3211.0,3209.9,0.15585]
[1768832931284,0.94318853,3210.9,3210.0,0.15584]
[1768832931486,0.94318853,3210.8,3210.0,0.15584]
[1768832931679,0.94318853,3210.7,3210.0,0.15584]
[1768832931880,1.11305734,3211.1,3210.0,0.15584]
[1768832933989,0.94334694,3211.0,3210.0,0.15584]
[1768832934180,0.94334694,3210.9,3209.4,0.14373559]
[1768832934486,0.94334694,3210.8,3210.1,0.15583]
[1768832934683,1.11305734,3211.2,3210.1,0.15583]
[1768832935081,0.94331413,3211.3,3209.7,0.13858604]
[1768832935282,0.94331413,3211.2,3210.4,0.15582]
[1768832935582,0.94331413,3211.1,3210.4,0.15582]
[1768832935887,1.11305734,3211.5,3210.5,0.15582]
[1768832936083,1.29440424,3211.2,3209.9,0.15585]
[1768832936380,1.29440424,3211.2,3209.4,0.00326721]
[1768832936381,1.29440424,3210.4,3209.4,0.00326721]
[1768832937173,0.94276425,3210.3,3208.5,0.13858604]
[1768832937378,0.94276425,3210.2,3208.5,0.13858604]
[1768832937686,0.94276425,3210.1,3208.5,0.13858604]
[1768832937986,1.11305734,3210.5,3208.5,0.13858604]
[1768832938180,1.11305734,3210.5,3208.5,0.1417323]
[1768832938386,0.942445,3210.4,3208.5,0.1417323]
[1768832938580,0.942445,3210.3,3209.0,0.15589]
[1768832938785,0.942445,3210.2,3209.0,0.29447604]
[1768832938986,1.11305734,3210.6,3209.0,0.29447604]
[1768832939188,0.94219154,3210.5,3209.0,0.29447604]
[1768832939386,0.94219154,3210.4,3209.0,0.29447604]
[1768832939580,0.94219154,3210.3,3209.0,0.29447604]
[1768832939781,0.94219154,3210.2,3209.0,0.29447604]
[1768832939982,1.11305734,3210.6,3209.0,0.29447604]
[1768832940178,0.94196021,3210.5,3209.0,0.29447604]
[1768832940484,1.29440424,3210.0,3209.0,0.29447604]
[1768832940694,1.29440424,3209.6,3208.6,0.13858604]
[1768832940886,1.29440424,3210.0,3208.6,0.29449604]
[1768832941084,1.29440424,3210.2,3208.8,0.13858604]
[1768832941390,0.94165592,3210.1,3208.8,0.13858604]
[1768832941593,0.94165592,3210.0,3208.8,0.13858604]
[1768832941789,1.29440424,3210.2,3208.8,0.13858604]
[1768832941990,0.94136717,3210.1,3208.8,0.13858604]
[1768832942288,0.94136717,3210.0,3208.8,0.13858604]
[1768832942491,1.29440424,3210.2,3208.8,0.13858604]
[1768832942685,0.94115196,3210.1,3208.8,0.13858604]
[1768832942886,0.94115196,3210.0,3208.8,0.13858604]
[1768832943087,1.29440424,3210.2,3208.8,0.13858604]
[1768832943391,0.94115987,3210.1,3208.8,0.13858604]
[1768832943592,0.94115987,3210.0,3208.8,0.13858604]
[1768832943784,0.94115987,3209.9,3208.8,0.13858604]
[1768832943985,1.29440424,3210.2,3208.8,0.13858604]
[1768832944197,0.94087298,3210.1,3208.8,0.13858604]
[1768832944395,0.94087298,3210.0,3208.8,0.13858604]
[1768832944586,0.94087298,3209.9,3208.8,0.13858604]
[1768832944893,1.29440424,3210.2,3208.8,0.13858604]
[1768832945090,0.94059954,3210.1,3208.8,0.13858604]
[1768832945297,0.94059954,3210.0,3208.8,0.13858604]
[1768832945492,0.94059954,3209.9,3208.8,0.13858604]
[1768832945687,1.29440424,3210.2,3208.8,0.13858604]
[1768832945891,0.94039352,3210.1,3208.8,0.13858604]
[1768832946089,0.94039352,3210.0,3208.8,0.13858604]
[1768832946293,0.94039352,3209.9,3208.8,0.13858604]
[1768832946490,1.29440424,3210.2,3208.8,0.13858604]
[1768832946686,0.94022767,3210.1,3208.8,0.13858604]
[1768832946892,0.94022767,3210.0,3208.8,0.13858604]
[1768832947091,0.94022767,3209.9,3208.8,0.13858604]
[1768832947393,1.29440424,3210.2,3208.8,0.13858604]
[1768832947595,0.94007648,3210.1,3208.8,0.13858604]
[1768832947892,0.94007648,3210.0,3208.8,0.13858604]
[1768832948201,1.29440424,3210.2,3208.8,0.13858604]
[1768832948501,0.93994753,3210.1,3208.8,0.13858604]
[1768832948798,0.93994753,3210.0,3208.8,0.13858604]
[1768832949002,1.29440424,3209.8,3208.8,0.13858604]
[1768832951307,1.29440424,3209.8,3208.7,0.15591]
[1768832952901,1.29606467,3209.3,3208.7,0.15591]
[1768832953105,1.29924105,3209.3,3208.7,0.15591]
[1768832953305,0.00317638,3209.3,3208.7,0.15591]
[1768832954502,1.29924105,3209.3,3208.5,0.00314626]
[1768832954707,1.29606467,3209.1,3208.5,0.00314626]
[1768832956002,0.00317638,3209.3,3208.5,0.00314626]
[1768832956203,1.29606467,3209.1,3208.5,0.00314626]
[1768832962309,0.00317638,3209.3,3208.6,0.29449604]
[1768832962513,0.00317638,3209.3,3208.7,0.13858604]
[1768832963012,1.29924105,3209.3,3208.7,0.13858604]
[1768832963410,1.29924105,3209.3,3208.6,0.15591]
[1768832964814,1.29606467,3209.1,3208.5,0.00314626]
[1768832965114,0.00317638,3209.3,3208.5,0.00314626]
[1768832965417,1.29606467,3209.2,3208.5,0.13747686]
[1768832966314,0.00317638,3209.3,3208.5,0.13747686]
[1768832966514,1.29606467,3209.2,3208.5,0.13747686]
[1768832967213,0.00317638,3209.3,3208.5,0.13747686]
[1768832968811,0.00317638,3209.3,3208.6,0.1343306]
[1768832970122,0.00317638,3209.3,3208.8,0.1343306]
[1768832970311,1.29606467,3209.6,3208.8,0.1343306]
[1768832970613,1.29606467,3209.8,3208.9,0.1343306]
[1768832970816,0.94268847,3209.7,3208.9,0.1343306]
[1768832971006,0.94268847,3209.6,3208.9,0.1343306]
[1768832971215,0.00331714,3209.6,3208.9,0.1343306]
[1768832972819,0.00331714,3209.6,3208.9,0.2902306]
[1768832973022,0.00331714,3209.6,3209.0,0.1343306]
[1768832973226,1.11305734,3210.1,3209.2,0.1343306]
[1768832973518,0.9431482,3210.0,3209.2,0.1343306]
[1768832973718,2.40912201,3210.4,3209.2,0.1343306]
[1768832973917,0.94313885,3210.3,3209.2,0.1343306]
[1768832974221,0.94313885,3210.2,3209.2,0.1343306]
[1768832974520,0.94313885,3210.1,3209.2,0.1343306]
[1768832974717,0.94313885,3210.0,3209.3,0.1343306]
[1768832975022,0.00326198,3210.3,3209.3,0.1343306]
[1768832975206,0.94295242,3210.2,3209.3,0.1343306]
[1768832975409,0.00326198,3210.3,3209.3,0.1343306]
[1768832975410,0.94295242,3210.1,3209.3,0.1343306]
[1768832975611,0.00326198,3210.3,3209.3,0.1343306]
[1768832975815,0.94276671,3210.2,3209.3,0.1343306]
[1768832976007,0.00326198,3210.3,3209.3,0.1343306]
[1768832976629,1.29606467,3210.0,3209.3,0.1343306]
[1768832979922,1.29606467,3210.0,3209.2,0.15588]
[1768832980125,1.29606467,3210.0,3209.2,0.28704514]
[1768832980919,1.29606467,3210.0,3209.3,0.13116514]
[1768832981218,1.29932665,3210.3,3209.3,0.13116514]
[1768832981417,0.93889401,3210.2,3209.3,0.13116514]
[1768832981625,1.29932665,3210.3,3209.3,0.13116514]
[1768832981929,0.93889336,3210.2,3209.3,0.13116514]
[1768832982227,1.29932665,3210.3,3209.3,0.13116514]
[1768832982416,1.29606467,3210.1,3209.3,0.13116514]
[1768832983433,0.00326198,3210.3,3209.3,0.13116514]
[1768832983614,0.93875253,3210.2,3209.3,0.13116514]
[1768832983820,1.29932665,3210.3,3209.3,0.13116514]
[1768832984119,0.93875631,3210.2,3209.3,0.13116514]
[1768832984318,1.29932665,3210.3,3209.3,0.13116514]
[1768832984517,0.9386932,3210.2,3209.3,0.13116514]
[1768832984718,1.29932665,3210.3,3209.3,0.13116514]
[1768832984917,0.93869482,3210.2,3209.3,0.13116514]
[1768832985129,1.29932665,3210.3,3209.3,0.13116514]
[1768832985330,0.93867058,3210.2,3209.3,0.13116514]
[1768832985626,1.29932665,3210.3,3209.3,0.13116514]
[1768832985825,0.93867145,3210.2,3209.3,0.13116514]
[1768832986037,1.29932665,3210.3,3209.3,0.13116514]
[1768832986224,0.93867329,3210.2,3209.3,0.13116514]
[1768832986534,1.29606467,3210.1,3209.3,0.13116514]
[1768832987623,0.00326198,3210.3,3209.3,0.13116514]
[1768832987831,1.29606467,3210.2,3209.3,0.13116514]
[1768832988936,1.29606467,3210.0,3209.3,0.13116514]
[1768832989327,0.00326198,3210.3,3209.3,0.13116514]
[1768832989632,1.29606467,3210.2,3209.3,0.13116514]
[1768832992037,1.29606467,3210.2,3209.3,0.28704514]
[1768832992733,1.29606467,3210.2,3209.4,0.13116514]
[1768832998230,0.94002161,3210.1,3209.4,0.13116514]
[1768832998431,1.29606467,3210.2,3209.4,0.13116514]
[1768832998631,0.94002161,3210.1,3209.4,0.13116514]
[1768832998842,1.29932665,3210.3,3209.4,0.13116514]
[1768832999142,0.94002231,3210.2,3209.4,0.13116514]
[1768832999333,0.94002231,3210.1,3209.4,0.13116514]
[1768832999534,1.29932665,3210.3,3209.4,0.13116514]
[1768832999835,0.94024314,3210.2,3209.6,0.13350463]
[1768833000038,0.00326198,3210.3,3209.7,0.13350463]
[1768833000742,1.29932665,3210.3,3209.6,0.15586]
[1768833001240,0.00326198,3210.3,3209.7,0.28936463]
[1768833001442,0.00326198,3210.3,3209.8,0.13350463]
[1768833001738,1.11305734,3211.0,3210.0,0.13350463]
[1768833001936,0.94057658,3210.9,3210.0,0.13350463]
[1768833002136,0.94057658,3210.8,3210.0,0.28934463]
[1768833002342,1.11305734,3211.4,3210.2,0.13350463]
[1768833002536,0.94023003,3211.3,3210.2,0.13350463]
[1768833002835,2.2362947,3211.2,3210.2,0.13350463]
[1768833003042,1.29606467,3211.0,3210.2,0.13350463]
[1768833003844,1.29606467,3211.1,3210.2,0.13350463]
[1768833004033,1.29606467,3210.9,3210.2,0.13350463]
[1768833004427,1.29917616,3211.3,3210.2,0.13350463]
[1768833004636,0.93634559,3211.2,3210.3,0.13350463]
[1768833004832,1.29917616,3211.3,3210.5,0.13350463]
[1768833004833,0.00311149,3211.3,3210.5,0.13350463]